fUSD/lending_fUSD_20240420
["ID","MTS","AMOUNT","RATE_DAILY","PERIOD"]
[323031105,1713606644005,-500.0,0.00015068,2]
[323031106,1713606644014,-500.0,0.00015068,2]
[323031107,1713606644023,-500.0,0.00015068,2]
[323031108,1713606644033,-500.0,0.00015068,2]
[323031109,1713606644042,-500.0,0.00015068,2]
[323031110,1713606644051,-500.0,0.00015068,2]
[323031111,1713606644060,-500.0,0.00015068,2]
[323031112,1713606644069,-500.0,0.00015068,2]
[323031113,1713606644079,-500.0,0.00015068,2]
[323031114,1713606644089,-1010.83,0.00015068,2]
[323031115,1713606644098,-500.0,0.00015068,2]
[323031116,1713606644107,-500.0,0.00015068,2]
[323031117,1713606644116,-625.05,0.00015068,2]
[323031118,1713606644125,-500.0,0.00015068,2]
[323031119,1713606644135,-500.0,0.00015068,2]
[323031120,1713606644144,-500.0,0.00015068,2]
[323031121,1713606644153,-500.0,0.00015068,2]
[323031122,1713606644162,-500.0,0.00015068,2]
[323031123,1713606644171,-1561.83,0.00015068,2]
[323031124,1713606644181,-500.0,0.00015068,2]
[323031125,1713606644190,-500.0,0.00015068,2]
[323031126,1713606644199,-595.32,0.00015068,2]
[323031127,1713606644208,-500.0,0.00015068,2]
[323031128,1713606644217,-500.0,0.00015068,2]
[323031129,1713606644227,-500.0,0.00015068,2]
[323031130,1713606644236,-500.0,0.00015068,2]
[323031131,1713606644245,-500.0,0.00015068,2]
[323031132,1713606644255,-500.0,0.00015068,2]
[323031133,1713606644264,-1576.79,0.00015068,2]
[323031134,1713606644273,-741.78,0.00015068,2]
[323031135,1713606644283,-500.0,0.00015068,2]
[323031136,1713606644292,-500.0,0.00015068,2]
[323031137,1713606644301,-656.94,0.00015068,2]
[323031138,1713606644310,-500.0,0.00015068,2]
[323031139,1713606644319,-792.21,0.00015068,2]
[323031140,1713606644329,-500.0,0.00015068,2]
[323031141,1713606644339,-673.25,0.00015068,2]
[323031142,1713606644348,-1000.63,0.00015068,2]
[323031143,1713606644358,-500.0,0.00015068,2]
[323031144,1713606644367,-500.0,0.00015068,2]
[323031145,1713606644376,-500.0,0.00015068,2]
[323031146,1713606644385,-500.0,0.00015068,2]
[323031147,1713606644395,-500.0,0.00015068,2]
[323031148,1713606644404,-151.0,0.00015068,2]
[323031149,1713606644414,-500.0,0.00015068,2]
[323031150,1713606644423,-500.0,0.00015068,2]
[323031151,1713606644433,-500.0,0.00015068,2]
[323031152,1713606644443,-151.0,0.00015068,2]
[323031153,1713606644453,-1432.46,0.00015068,2]
[323031154,1713606644462,-501.5541157,0.00015068,2]
[323031155,1713606644472,-500.0,0.00015068,2]
[323031156,1713606644482,-565.3,0.00015068,2]
[323031157,1713606644491,-151.0,0.00015068,2]
[323031158,1713606644501,-500.0,0.00015068,2]
[323031159,1713606644510,-500.0,0.00015068,2]
[323031160,1713606644521,-500.0,0.00015068,2]
[323031161,1713606644530,-500.0,0.00015068,2]
[323031162,1713606644539,-629.73,0.00015068,2]
[323031163,1713606644549,-584.22,0.00015068,2]
[323031164,1713606644559,-500.0,0.00015068,2]
[323031165,1713606644568,-1122.86,0.00015068,2]
[323031166,1713606644579,-500.0,0.00015068,2]
[323031167,1713606644588,-500.0,0.00015068,2]
[323031168,1713606644597,-1227.43,0.00015068,2]
[323031169,1713606644607,-500.0,0.00015068,2]
[323031170,1713606644617,-973.32,0.00015068,2]
[323031171,1713606644626,-734.08,0.00015068,2]
[323031172,1713606644636,-513.51,0.00015068,2]
[323031173,1713606644645,-500.0,0.00015068,2]
[323031174,1713606644655,-500.0,0.00015068,2]
[323031175,1713606644664,-500.0,0.00015068,2]
[323031176,1713606644674,-500.0,0.00015068,2]
[323031177,1713606644683,-151.0,0.00015068,2]
[323031178,1713606644693,-500.0,0.00015068,2]
[323031179,1713606644703,-500.0,0.00015068,2]
[323031180,1713606644712,-532.74,0.00015068,2]
[323031181,1713606644721,-821.46,0.00015068,2]
[323031182,1713606644730,-1321.58,0.00015068,2]
[323031183,1713606644739,-1701.44,0.00015068,2]
[323031184,1713606644750,-1474.97,0.00015068,2]
[323031185,1713606644761,-1073.91,0.00015068,2]
[323031186,1713606644770,-177.27242034,0.00015068,2]
[323031187,1713606644779,-500.0,0.00015068,2]
[323031188,1713606644788,-261.27583175,0.00015068,2]
[323031189,1713606644798,-500.0,0.00015068,2]
[323031190,1713606644807,-336.67580252,0.00015068,2]
[323031191,1713606644816,-877.52,0.00015068,2]
[323031192,1713606644826,-500.0,0.00015068,2]
[323031193,1713606644835,-1337.98,0.00015068,2]
[323031194,1713606644846,-500.0,0.00015068,2]
[323031195,1713606644855,-371.87502093,0.00015068,2]
[323031196,1713606644864,-500.0,0.00015068,2]
[323031197,1713606644873,-1078.1,0.00015068,2]
[323031198,1713606644882,-732.87,0.00015068,2]
[323031199,1713606644892,-151.0,0.00015068,2]
[323031200,1713606644901,-500.0,0.00015068,2]
[323031201,1713606644910,-500.0,0.00015068,2]
[323031202,1713606644920,-500.0,0.00015068,2]
[323031203,1713606644929,-376.51502397,0.00015068,2]
[323031204,1713606644938,-500.0,0.00015068,2]
[323031205,1713606644947,-500.0,0.00015068,2]
[323031206,1713606644956,-500.0,0.00015068,2]
[323031207,1713606644965,-608.72,0.00015068,2]
[323031208,1713606644975,-780.32,0.00015068,2]
[323031209,1713606644984,-939.68,0.00015068,2]
[323031210,1713606644994,-500.0,0.00015068,2]
[323031211,1713606645003,-671.38,0.00015068,2]
[323031212,1713606645014,-949.39,0.00015068,2]
[323031213,1713606645023,-1497.43,0.00015068,2]
[323031214,1713606645032,-1745.64,0.00015068,2]
[323031215,1713606645042,-500.0,0.00015068,2]
[323031216,1713606645051,-645.58,0.00015068,2]
[323031217,1713606645060,-579.82,0.00015068,2]
[323031218,1713606645070,-500.0,0.00015068,2]
[323031219,1713606645079,-701.16,0.00015068,2]
[323031220,1713606645089,-1470.91,0.00015068,2]
[323031221,1713606645099,-207.353561,0.00015068,2]
[323031222,1713606645108,-1632.07,0.00015068,2]
[323031223,1713606645118,-500.0,0.00015068,2]
[323031224,1713606645127,-999.64,0.00015068,2]
[323031225,1713606645136,-500.0,0.00015068,2]
[323031226,1713606645146,-559.73,0.00015068,2]
[323031227,1713606645157,-663.39,0.00015068,2]
[323031228,1713606645167,-505.43,0.00015068,2]
[323031229,1713606645176,-500.0,0.00015068,2]
[323031230,1713606645185,-1311.24,0.00015068,2]
[323031231,1713606645195,-500.0,0.00015068,2]
[323031232,1713606645427,-500.0,0.00015068,2]
[323031233,1713606645437,-500.0,0.00015068,2]
[323031234,1713606645447,-521.07,0.00015068,2]
[323031235,1713606645457,-500.0,0.00015068,2]
[323031236,1713606645467,-1203.33,0.00015068,2]
[323031237,1713606645476,-500.0,0.00015068,2]
[323031238,1713606645486,-865.59,0.00015068,2]
[323031239,1713606645496,-2198.67,0.00015068,2]
[323031240,1713606645506,-500.0,0.00015068,2]
[323031241,1713606645515,-2356.75,0.00015068,2]
[323031242,1713606645524,-749.93,0.00015068,2]
[323031243,1713606645534,-500.0,0.00015068,2]
[323031244,1713606645543,-1226.72,0.00015068,2]
[323031245,1713606645553,-151.0,0.00015068,2]
[323031246,1713606645563,-500.0,0.00015068,2]
[323031247,1713606645573,-500.0,0.00015068,2]
[323031248,1713606645583,-1073.03,0.00015068,2]
[323031249,1713606645592,-500.0,0.00015068,2]
[323031250,1713606645602,-500.0,0.00015068,2]
[323031251,1713606645612,-1193.83,0.00015068,2]
[323031252,1713606645621,-1623.5,0.00015068,2]
[323031253,1713606645631,-500.0,0.00015068,2]
[323031254,1713606645640,-568.05,0.00015068,2]
[323031255,1713606645650,-500.0,0.00015068,2]
[323031256,1713606645659,-500.0,0.00015068,2]
[323031257,1713606645669,-928.56,0.00015068,2]
[323031259,1713606645678,-500.0,0.00015068,2]
[323031260,1713606645687,-500.0,0.00015068,2]
[323031262,1713606645697,-500.0,0.00015068,2]
[323031263,1713606645708,-500.0,0.00015068,2]
[323031265,1713606645717,-591.66502173,0.00015068,2]
[323031267,1713606645726,-500.68,0.00015068,2]
[323031268,1713606645736,-1450.73,0.00015068,2]
[323031270,1713606645746,-500.0,0.00015068,2]
[323031272,1713606645758,-2212.57,0.00015068,2]
[323031274,1713606645771,-500.0,0.00015068,2]
[323031276,1713606645780,-500.0,0.00015068,2]
[323031277,1713606645789,-500.0,0.00015068,2]
[323031279,1713606645798,-521.14,0.00015068,2]
[323031281,1713606645808,-715.55,0.00015068,2]
[323031282,1713606645817,-651.38,0.00015068,2]
[323031284,1713606645828,-500.0,0.00015068,2]
[323031287,1713606645840,-1059.55,0.00015068,2]
[323031291,1713606645850,-500.0,0.00015068,2]
[323031293,1713606645859,-1315.71,0.00015068,2]
[323031296,1713606645870,-558.22,0.00015068,2]
[323031299,1713606645879,-512.19,0.00015068,2]
[323031301,1713606645889,-151.0,0.00015068,2]
[323031305,1713606645898,-557.12,0.00015068,2]
[323031307,1713606645908,-1059.05,0.00015068,2]
[323031310,1713606645918,-500.0,0.00015068,2]
[323031313,1713606645928,-500.0,0.00015068,2]
[323031316,1713606645938,-500.0,0.00015068,2]
[323031318,1713606645947,-500.0,0.00015068,2]
[323031321,1713606645958,-500.0,0.00015068,2]
[323031324,1713606645967,-640.26,0.00015068,2]
[323031326,1713606645976,-865.54,0.00015068,2]
[323031329,1713606645985,-500.44,0.00015068,2]
[323031331,1713606645994,-500.0,0.00015068,2]
[323031334,1713606646004,-643.99,0.00015068,2]
[323031337,1713606646013,-500.0,0.00015068,2]
[323031339,1713606646023,-500.0,0.00015068,2]
[323031342,1713606646032,-500.0,0.00015068,2]
[323031344,1713606646041,-1590.08,0.00015068,2]
[323031346,1713606646050,-500.0,0.00015068,2]
[323031348,1713606646058,-583.35,0.00015068,2]
[323031350,1713606646067,-500.0,0.00015068,2]
[323031352,1713606646078,-500.0,0.00015068,2]
[323031354,1713606646088,-500.0,0.00015068,2]
[323031356,1713606646097,-500.0,0.00015068,2]
[323031358,1713606646107,-500.0,0.00015068,2]
[323031360,1713606646116,-500.0,0.00015068,2]
[323031362,1713606646126,-1637.56,0.00015068,2]
[323031364,1713606646136,-500.0,0.00015068,2]
[323031366,1713606646145,-620.68,0.00015068,2]
[323031368,1713606646154,-500.0,0.00015068,2]
[323031370,1713606646165,-500.0,0.00015068,2]
[323031372,1713606646174,-500.0,0.00015068,2]
[323031374,1713606646184,-500.0,0.00015068,2]
[323031376,1713606646193,-500.0,0.00015068,2]
[323031379,1713606646202,-177.440691,0.00015068,2]
[323031381,1713606646212,-675.63,0.00015068,2]
[323031383,1713606646222,-162.437271,0.00015068,2]
[323031384,1713606646231,-524.7,0.00015068,2]
[323031385,1713606646240,-279.73803663,0.00015068,2]
[323031386,1713606646250,-177.440691,0.00015068,2]
[323031387,1713606646259,-500.0,0.00015068,2]
[323031388,1713606646268,-500.0,0.00015068,2]
[323031389,1713606646278,-500.0,0.00015068,2]
[323031390,1713606646287,-572.46,0.00015068,2]
[323031391,1713606646297,-500.0,0.00015068,2]
[323031392,1713606646308,-500.0,0.00015068,2]
[323031393,1713606646318,-933.09,0.00015068,2]
[323031394,1713606646328,-500.0,0.00015068,2]
[323031395,1713606646337,-151.0,0.00015068,2]
[323031396,1713606646346,-2988.17,0.00015068,2]
[323031398,1713606646356,-500.0,0.00015068,2]
[323031399,1713606646365,-1405.89,0.00015068,2]
[323031400,1713606646374,-500.0,0.00015068,2]
[323031401,1713606646385,-3000.0,0.00015068,2]
[323031402,1713606646394,-151.0,0.00015068,2]
[323031403,1713606646403,-596.15091914,0.00015068,2]
[323031404,1713606646412,-500.0,0.00015068,2]
[323031405,1713606646422,-500.0,0.00015068,2]
[323031406,1713606646431,-926.43,0.00015068,2]
[323031407,1713606646440,-500.0,0.00015068,2]
[323031408,1713606646454,-500.0,0.00015068,2]
[323031409,1713606646463,-824.19,0.00015068,2]
[323031410,1713606646473,-969.12,0.00015068,2]
[323031411,1713606646482,-551.2,0.00015068,2]
[323031412,1713606646492,-500.0,0.00015068,2]
[323031413,1713606646501,-500.0,0.00015068,2]
[323031414,1713606646510,-542.1,0.00015068,2]
[323031415,1713606646520,-634.78,0.00015068,2]
[323031417,1713606646529,-501.57,0.00015068,2]
[323031418,1713606646538,-622.26,0.00015068,2]
[323031419,1713606646547,-2802.38,0.00015068,2]
[323031420,1713606646556,-500.0,0.00015068,2]
[323031421,1713606646566,-1340.9,0.00015068,2]
[323031422,1713606646575,-500.0,0.00015068,2]
[323031423,1713606646585,-500.0,0.00015068,2]
[323031424,1713606646594,-500.0,0.00015068,2]
[323031425,1713606646603,-500.0,0.00015068,2]
[323031426,1713606646613,-500.0,0.00015068,2]
[323031427,1713606646622,-2059.27704,0.00015068,2]
[323031428,1713606646631,-500.0,0.00015068,2]
[323031429,1713606646641,-500.0,0.00015068,2]
[323031430,1713606646650,-500.0,0.00015068,2]
[323031431,1713606646659,-500.0,0.00015068,2]
[323031432,1713606646669,-500.0,0.00015068,2]
[323031433,1713606646678,-1124.43,0.00015068,2]
[323031434,1713606646687,-1627.35,0.00015068,2]
[323031435,1713606646696,-500.0,0.00015068,2]
[323031436,1713606646705,-500.0,0.00015068,2]
[323031437,1713606646714,-2059.27704,0.00015068,2]
[323031438,1713606646724,-500.0,0.00015068,2]
[323031439,1713606646733,-8852.73,0.00015068,2]
[323031440,1713606646742,-500.0,0.00015068,2]
[323031441,1713606646755,-500.0,0.00015068,2]
[323031442,1713606646764,-500.0,0.00015068,2]
[323031443,1713606646773,-500.0,0.00015068,2]
[323031444,1713606646783,-500.0,0.00015068,2]
[323031445,1713606646792,-500.0,0.00015068,2]
[323031446,1713606646803,-2630.22,0.00015068,2]
[323031447,1713606646812,-500.0,0.00015068,2]
[323031448,1713606646821,-890.93,0.00015068,2]
[323031449,1713606646832,-500.0,0.00015068,2]
[323031450,1713606646841,-1770.39,0.00015068,2]
[323031451,1713606646851,-500.0,0.00015068,2]
[323031452,1713606646860,-500.0,0.00015068,2]
[323031453,1713606646870,-2277.89,0.00015068,2]
[323031454,1713606646880,-500.0,0.00015068,2]
[323031455,1713606646889,-500.0,0.00015068,2]
[323031456,1713606646898,-2085.08,0.00015068,2]
[323031457,1713606646908,-500.0,0.00015068,2]
[323031458,1713606646917,-500.0,0.00015068,2]
[323031459,1713606646927,-500.0,0.00015068,2]
[323031460,1713606646937,-500.0,0.00015068,2]
[323031461,1713606646946,-262.793727,0.00015068,2]
[323031462,1713606646955,-1440.69,0.00015068,2]
[323031463,1713606646964,-500.0,0.00015068,2]
[323031464,1713606646974,-843.94,0.00015068,2]
[323031465,1713606646983,-1598.28,0.00015068,2]
[323031466,1713606646992,-151.0,0.00015068,2]
[323031467,1713606647001,-500.0,0.00015068,2]
[323031468,1713606647011,-500.0,0.00015068,2]
[323031469,1713606647020,-1197.91,0.00015068,2]
[323031470,1713606647029,-991.34,0.00015068,2]
[323031471,1713606647039,-500.0,0.00015068,2]
[323031472,1713606647049,-500.0,0.00015068,2]
[323031473,1713606647058,-1712.36,0.00015068,2]
[323031474,1713606647067,-500.0,0.00015068,2]
[323031475,1713606647077,-500.0,0.00015068,2]
[323031476,1713606647086,-1006.7,0.00015068,2]
[323031477,1713606647095,-215.07608047,0.00015068,2]
[323031478,1713606647722,-2117.49391953,0.00015068,2]
[323031479,1713606647732,-262.72468,0.00015068,2]
[323031480,1713606647741,-500.0,0.00015068,2]
[323031481,1713606647752,-1397.85,0.00015068,2]
[323031482,1713606647763,-2008.39,0.00015068,2]
[323031483,1713606647771,-1488.66,0.00015068,2]
[323031484,1713606647781,-500.0,0.00015068,2]
[323031485,1713606647789,-621.69,0.00015068,2]
[323031486,1713606647799,-500.0,0.00015068,2]
[323031487,1713606647809,-500.0,0.00015068,2]
[323031488,1713606647818,-1238.88,0.00015068,2]
[323031489,1713606647828,-1018.55,0.00015068,2]
[323031490,1713606647839,-500.0,0.00015068,2]
[323031491,1713606647848,-500.0,0.00015068,2]
[323031492,1713606647857,-151.0,0.00015068,2]
[323031493,1713606647866,-4982.91,0.00015068,2]
[323031494,1713606647875,-500.0,0.00015068,2]
[323031495,1713606647884,-500.0,0.00015068,2]
[323031496,1713606647893,-1053.67,0.00015068,2]
[323031497,1713606647902,-500.0,0.00015068,2]
[323031498,1713606647911,-1863.54,0.00015068,2]
[323031499,1713606647920,-500.0,0.00015068,2]
[323031500,1713606647931,-151.0,0.00015068,2]
[323031501,1713606647941,-500.0,0.00015068,2]
[323031502,1713606647952,-500.0,0.00015068,2]
[323031503,1713606647962,-500.0,0.00015068,2]
[323031504,1713606647971,-628.57,0.00015068,2]
[323031505,1713606647980,-500.0,0.00015068,2]
[323031506,1713606647988,-4066.9,0.00015068,2]
[323031507,1713606647998,-2472.46,0.00015068,2]
[323031508,1713606648008,-1716.47,0.00015068,2]
[323031509,1713606648017,-500.0,0.00015068,2]
[323031510,1713606648026,-500.0,0.00015068,2]
[323031511,1713606648036,-500.0,0.00015068,2]
[323031512,1713606648045,-784.57,0.00015068,2]
[323031513,1713606648054,-500.0,0.00015068,2]
[323031514,1713606648063,-500.0,0.00015068,2]
[323031515,1713606648074,-500.0,0.00015068,2]
[323031516,1713606648084,-17530.34,0.00015068,2]
[323031517,1713606648093,-2472.99,0.00015068,2]
[323031518,1713606648102,-917.28,0.00015068,2]
[323031519,1713606648111,-500.0,0.00015068,2]
[323031520,1713606648120,-500.0,0.00015068,2]
[323031521,1713606648129,-608.55,0.00015068,2]
[323031522,1713606648139,-13235.53,0.00015068,2]
[323031523,1713606648149,-20955.96,0.00015068,2]
[323031524,1713606648158,-918.86,0.00015068,2]
[323031525,1713606648167,-500.0,0.00015068,2]
[323031526,1713606648176,-1673.72,0.00015068,2]
[323031527,1713606648185,-500.0,0.00015068,2]
[323031528,1713606648194,-500.0,0.00015068,2]
[323031529,1713606648203,-500.0,0.00015068,2]
[323031530,1713606648212,-500.0,0.00015068,2]
[323031531,1713606648221,-500.0,0.00015068,2]
[323031532,1713606648230,-500.0,0.00015068,2]
[323031533,1713606648239,-500.0,0.00015068,2]
[323031534,1713606648248,-1577.26,0.00015068,2]
[323031535,1713606648257,-500.0,0.00015068,2]
[323031536,1713606648266,-319.342151,0.00015068,2]
[323031537,1713606648276,-153.594007,0.00015068,2]
[323031538,1713606648285,-500.0,0.00015068,2]
[323031539,1713606648295,-3121.37,0.00015068,2]
[323031540,1713606648304,-1967.92,0.00015068,2]
[323031541,1713606648314,-1245.08,0.00015068,2]
[323031542,1713606648323,-500.0,0.00015068,2]
[323031543,1713606648334,-500.0,0.00015068,2]
[323031544,1713606648343,-319.342151,0.00015068,2]
[323031545,1713606648352,-500.0,0.00015068,2]
[323031546,1713606648361,-2224.53,0.00015068,2]
[323031547,1713606648370,-500.0,0.00015068,2]
[323031548,1713606648380,-500.0,0.00015068,2]
[323031549,1713606648389,-500.0,0.00015068,2]
[323031550,1713606648398,-500.0,0.00015068,2]
[323031551,1713606648407,-503.14228776,0.00015068,2]
[323031552,1713606648416,-526.88,0.00015068,2]
[323031553,1713606648425,-4404.54,0.00015068,2]
[323031554,1713606648435,-593.78,0.00015068,2]
[323031555,1713606648444,-500.0,0.00015068,2]
[323031556,1713606648453,-500.0,0.00015068,2]
[323031557,1713606648462,-500.0,0.00015068,2]
[323031558,1713606648471,-500.0,0.00015068,2]
[323031559,1713606648481,-500.0,0.00015068,2]
[323031560,1713606648490,-1220.43,0.00015068,2]
[323031561,1713606648499,-500.0,0.00015068,2]
[323031562,1713606648507,-500.0,0.00015068,2]
[323031563,1713606648516,-2303.18,0.00015068,2]
[323031564,1713606648525,-506.55,0.00015068,2]
[323031565,1713606648534,-500.0,0.00015068,2]
[323031566,1713606648543,-500.0,0.00015068,2]
[323031567,1713606648552,-500.0,0.00015068,2]
[323031568,1713606648561,-500.0,0.00015068,2]
[323031569,1713606648571,-500.0,0.00015068,2]
[323031570,1713606648581,-500.0,0.00015068,2]
[323031571,1713606648590,-500.0,0.00015068,2]
[323031572,1713606648599,-7756.71,0.00015068,2]
[323031573,1713606648608,-500.0,0.00015068,2]
[323031574,1713606648617,-500.0,0.00015068,2]
[323031575,1713606648626,-552.75,0.00015068,2]
[323031576,1713606648635,-2003.05,0.00015068,2]
[323031577,1713606648644,-500.0,0.00015068,2]
[323031578,1713606648653,-502.6119526,0.00015068,2]
[323031579,1713606648664,-500.0,0.00015068,2]
[323031580,1713606648673,-500.0,0.00015068,2]
[323031581,1713606648682,-610.43149575,0.00015068,2]
[323031582,1713606648693,-500.0,0.00015068,2]
[323031583,1713606648703,-500.0,0.00015068,2]
[323031584,1713606648712,-500.0,0.00015068,2]
[323031585,1713606648721,-1176.38,0.00015068,2]
[323031586,1713606648730,-500.0,0.00015068,2]
[323031587,1713606648741,-500.0,0.00015068,2]
[323031588,1713606648750,-759.11,0.00015068,2]
[323031589,1713606648762,-722.8,0.00015068,2]
[323031590,1713606648771,-500.0,0.00015068,2]
[323031591,1713606648780,-500.0,0.00015068,2]
[323031592,1713606648789,-500.0,0.00015068,2]
[323031593,1713606648798,-4765.57,0.00015068,2]
[323031594,1713606648807,-500.0,0.00015068,2]
[323031595,1713606648816,-500.0,0.00015068,2]
[323031596,1713606648825,-500.0,0.00015068,2]
[323031597,1713606648837,-545.94,0.00015068,2]
[323031598,1713606648847,-500.0,0.00015068,2]
[323031599,1713606648857,-500.0,0.00015068,2]
[323031600,1713606648865,-500.0,0.00015068,2]
[323031601,1713606648874,-500.0,0.00015068,2]
[323031602,1713606648883,-500.0,0.00015068,2]
[323031603,1713606648892,-500.0,0.00015068,2]
[323031604,1713606648901,-500.0,0.00015068,2]
[323031605,1713606648910,-686.41,0.00015068,2]
[323031606,1713606648919,-862.47,0.00015068,2]
[323031607,1713606648928,-1806.08,0.00015068,2]
[323031608,1713606648937,-827.05,0.00015068,2]
[323031609,1713606648946,-500.0,0.00015068,2]
[323031610,1713606648955,-500.0,0.00015068,2]
[323031611,1713606648964,-531.8,0.00015068,2]
[323031612,1713606648973,-500.0,0.00015068,2]
[323031613,1713606648982,-551.74,0.00015068,2]
[323031614,1713606648991,-898.19,0.00015068,2]
[323031615,1713606649000,-1662.43,0.00015068,2]
[323031616,1713606649009,-500.0,0.00015068,2]
[323031617,1713606649019,-935.27,0.00015068,2]
[323031618,1713606649028,-1025.35,0.00015068,2]
[323031619,1713606649040,-1119.26,0.00015068,2]
[323031620,1713606649050,-500.0,0.00015068,2]
[323031621,1713606649060,-2884.62,0.00015068,2]
[323031622,1713606649069,-500.0,0.00015068,2]
[323031623,1713606649078,-500.0,0.00015068,2]
[323031624,1713606649088,-500.0,0.00015068,2]
[323031625,1713606649097,-500.0,0.00015068,2]
[323031626,1713606649106,-500.0,0.00015068,2]
[323031627,1713606649115,-500.0,0.00015068,2]
[323031628,1713606649124,-500.0,0.00015068,2]
[323031629,1713606649133,-2480.25,0.00015068,2]
[323031630,1713606649142,-2286.13,0.00015068,2]
[323031631,1713606649151,-500.0,0.00015068,2]
[323031632,1713606649160,-551.15,0.00015068,2]
[323031633,1713606649169,-931.93,0.00015068,2]
[323031634,1713606649178,-500.0,0.00015068,2]
[323031635,1713606649187,-500.0,0.00015068,2]
[323031636,1713606649196,-922.38,0.00015068,2]
[323031637,1713606649205,-500.0,0.00015068,2]
[323031638,1713606649214,-500.0,0.00015068,2]
[323031639,1713606649223,-1807.05,0.00015068,2]
[323031640,1713606649232,-824.51,0.00015068,2]
[323031642,1713606649241,-500.0,0.00015068,2]
[323031643,1713606649250,-500.0,0.00015068,2]
[323031644,1713606649259,-1067.73,0.00015068,2]
[323031645,1713606649268,-1469.24,0.00015068,2]
[323031646,1713606649278,-1341.844691,0.00015068,2]
[323031647,1713606649287,-781.72,0.00015068,2]
[323031648,1713606649295,-500.0,0.00015068,2]
[323031649,1713606649304,-1341.844691,0.00015068,2]
[323031650,1713606649313,-500.0,0.00015068,2]
[323031651,1713606649322,-500.0,0.00015068,2]
[323031652,1713606649331,-3660.97,0.00015068,2]
[323031653,1713606649340,-2309.57,0.00015068,2]
[323031654,1713606649349,-500.0,0.00015068,2]
[323031655,1713606649359,-1341.844691,0.00015068,2]
[323031656,1713606649367,-500.0,0.00015068,2]
[323031657,1713606649376,-1341.844691,0.00015068,2]
[323031658,1713606649385,-1105.24,0.00015068,2]
[323031659,1713606649394,-500.0,0.00015068,2]
[323031660,1713606649403,-502.47614594,0.00015068,2]
[323031661,1713606649413,-500.0,0.00015068,2]
[323031662,1713606649422,-1903.47,0.00015068,2]
[323031663,1713606649431,-500.0,0.00015068,2]
[323031664,1713606649440,-500.0,0.00015068,2]
[323031665,1713606649449,-742.1,0.00015068,2]
[323031666,1713606649459,-1067.03,0.00015068,2]
[323031667,1713606649469,-322.194178,0.00015068,2]
[323031668,1713606649478,-322.194178,0.00015068,2]
[323031669,1713606649488,-942.88,0.00015068,2]
[323031670,1713606649497,-500.0,0.00015068,2]
[323031671,1713606649506,-500.0,0.00015068,2]
[323031672,1713606649515,-567.26,0.00015068,2]
[323031673,1713606649524,-500.0,0.00015068,2]
[323031674,1713606649533,-500.0,0.00015068,2]
[323031675,1713606649542,-566.55,0.00015068,2]
[323031676,1713606649551,-183.61222516,0.00015068,2]